[Event "*** Titled Tuesday Blitz"]
[Site "Chess.com"]
[Date "2020.10.20"]
[Round "6"]
[White "gmpeter008"]
[Black "davidkalashian"]
[Result "0-1"]
[WhiteElo "2424"]
[BlackElo "2610"]
[TimeControl "180+1"]
[EndTime "11:09:44 PDT"]
[Termination "davidkalashian won by resignation"]

1. d4 {[%clk 0:03:00.5]} 1... Nf6 {[%clk 0:02:59.2]} 2. Bf4 {[%clk 0:03:00.6]}
2... e6 {[%clk 0:02:58.6]} 3. e3 {[%clk 0:03:00.8]} 3... b6 {[%clk 0:02:59]} 4.
Nf3 {[%clk 0:03:01]} 4... Bb7 {[%clk 0:02:59.4]} 5. a4 {[%clk 0:03:01.6]} 5...
a6 {[%clk 0:02:58.1]} 6. Nbd2 {[%clk 0:03:01.8]} 6... Be7 {[%clk 0:02:56.7]} 7.
c3 {[%clk 0:03:02]} 7... O-O {[%clk 0:02:57]} 8. Bd3 {[%clk 0:03:02.3]} 8... c5
{[%clk 0:02:57.4]} 9. O-O {[%clk 0:03:02.5]} 9... cxd4 {[%clk 0:02:57]} 10. exd4
{[%clk 0:03:03.4]} 10... d6 {[%clk 0:02:57.2]} 11. Re1 {[%clk 0:03:03.2]} 11...
Nbd7 {[%clk 0:02:56.8]} 12. Qe2 {[%clk 0:03:02.9]} 12... Re8 {[%clk 0:02:56.5]}
13. Bg3 {[%clk 0:03:02.6]} 13... Nf8 {[%clk 0:02:55.4]} 14. Nc4 {[%clk
0:02:59.6]} 14... Ng6 {[%clk 0:02:53.7]} 15. Ng5 {[%clk 0:02:56.5]} 15... Bf8
{[%clk 0:02:46.6]} 16. h4 {[%clk 0:02:48.2]} 16... e5 {[%clk 0:02:13.8]} 17. h5
{[%clk 0:02:42.9]} 17... Nf4 {[%clk 0:01:43.5]} 18. Bxf4 {[%clk 0:02:14.8]}
18... exf4 {[%clk 0:01:44.4]} 19. Qxe8 {[%clk 0:02:11.9]} 19... Qxe8 {[%clk
0:01:39]} 20. Rxe8 {[%clk 0:02:10.3]} 20... Rxe8 {[%clk 0:01:39.9]} 21. Nxb6
{[%clk 0:02:09.8]} 21... h6 {[%clk 0:01:35.8]} 22. Nf3 {[%clk 0:02:09.1]} 22...
Nxh5 {[%clk 0:01:33]} 23. a5 {[%clk 0:01:58.1]} 23... Nf6 {[%clk 0:01:30.5]} 24.
Re1 {[%clk 0:01:55.8]} 24... Rxe1+ {[%clk 0:01:00.2]} 25. Nxe1 {[%clk
0:01:56.7]} 25... Be7 {[%clk 0:01:00.2]} 26. Nc2 {[%clk 0:01:55.1]} 26... Bd8
{[%clk 0:01:00.5]} 27. Nb4 {[%clk 0:01:53.2]} 27... Bxb6 {[%clk 0:01:00]} 28.
axb6 {[%clk 0:01:53.5]} 28... Nd7 {[%clk 0:01:00.9]} 29. Nxa6 {[%clk 0:01:15.1]}
29... Nxb6 {[%clk 0:00:58.3]} 30. Nb4 {[%clk 0:01:14.1]} 30... Na4 {[%clk
0:00:57.6]} 31. Bb5 {[%clk 0:00:53.7]} 31... Nxb2 {[%clk 0:00:56.1]} 32. c4
{[%clk 0:00:54.1]} 32... Kf8 {[%clk 0:00:41.4]} 33. c5 {[%clk 0:00:53.3]} 33...
dxc5 {[%clk 0:00:41.1]} 34. dxc5 {[%clk 0:00:54.2]} 34... Ke7 {[%clk 0:00:41.4]}
35. c6 {[%clk 0:00:30.1]} 35... Ba8 {[%clk 0:00:32.8]} 36. c7 {[%clk 0:00:28]}
36... Bb7 {[%clk 0:00:30.8]} 37. Kf1 {[%clk 0:00:11.2]} 37... Kd6 {[%clk
0:00:25.6]} 38. Ke2 {[%clk 0:00:11]} 38... Kxc7 {[%clk 0:00:24.8]} 39. Kd2
{[%clk 0:00:11.4]} 39... Kb6 {[%clk 0:00:20.1]} 40. Be8 {[%clk 0:00:11.5]} 40...
Nc4+ {[%clk 0:00:16.7]} 41. Kd3 {[%clk 0:00:10.7]} 41... Nd6 {[%clk 0:00:17.4]}
42. Ba4 {[%clk 0:00:08.4]} 42... Bxg2 {[%clk 0:00:13.1]} 43. Kd4 {[%clk
0:00:06.5]} 43... Ka5 {[%clk 0:00:11.9]} 44. Bc6 {[%clk 0:00:06.8]} 44... Kxb4
{[%clk 0:00:09.8]} 45. Bxg2 {[%clk 0:00:06.9]} 45... Nf5+ {[%clk 0:00:07.5]} 46.
Ke5 {[%clk 0:00:07.1]} 46... Nh4 {[%clk 0:00:08.4]} 47. Bd5 {[%clk 0:00:07.4]}
47... g5 {[%clk 0:00:05.1]} 48. Bxf7 {[%clk 0:00:05]} 48... Kc3 {[%clk
0:00:05.7]} 49. Kf6 {[%clk 0:00:04.9]} 49... Kd3 {[%clk 0:00:03]} 50. Kg7 {[%clk
0:00:05.3]} 50... Nf5+ {[%clk 0:00:02.4]} 51. Kf6 {[%clk 0:00:04.6]} 51... Nd6
{[%clk 0:00:02.1]} 52. Bg6+ {[%clk 0:00:04]} 52... Ke2 {[%clk 0:00:02.6]} 53.
Kg7 {[%clk 0:00:04.4]} 53... Kxf2 {[%clk 0:00:02.7]} 54. Kxh6 {[%clk 0:00:04.9]}
54... g4 {[%clk 0:00:03.4]} 55. Kg5 {[%clk 0:00:05.3]} 55... g3 {[%clk
0:00:03.8]} 56. Kxf4 {[%clk 0:00:05.8]} 56... g2 {[%clk 0:00:04.2]} 0-1

[Event "*** Titled Tuesday Blitz"]
[Site "Chess.com"]
[Date "2020.10.20"]
[Round "6"]
[White "MidnightFox"]
[Black "MarkoPe"]
[Result "1-0"]
[WhiteElo "2438"]
[BlackElo "2165"]
[TimeControl "180+1"]
[EndTime "11:09:44 PDT"]
[Termination "MidnightFox won on time"]

1. Nf3 {[%clk 0:03:00.9]} 1... d5 {[%clk 0:02:58.7]} 2. d4 {[%clk 0:02:59.1]}
2... Nf6 {[%clk 0:02:56.2]} 3. c4 {[%clk 0:02:59.2]} 3... e6 {[%clk 0:02:53.8]}
4. g3 {[%clk 0:02:58.1]} 4... dxc4 {[%clk 0:02:48.5]} 5. Bg2 {[%clk 0:02:57.4]}
5... a6 {[%clk 0:02:44.2]} 6. O-O {[%clk 0:02:55.4]} 6... Nc6 {[%clk 0:02:43.8]}
7. e3 {[%clk 0:02:50.9]} 7... Be7 {[%clk 0:02:34.7]} 8. Qe2 {[%clk 0:02:50.7]}
8... O-O {[%clk 0:02:24.2]} 9. Qxc4 {[%clk 0:02:50.1]} 9... Qd5 {[%clk
0:02:24.3]} 10. Qe2 {[%clk 0:02:47.8]} 10... Qb5 {[%clk 0:02:23]} 11. Qxb5
{[%clk 0:02:45.2]} 11... axb5 {[%clk 0:02:23]} 12. Nc3 {[%clk 0:02:46.1]} 12...
b4 {[%clk 0:02:22.6]} 13. Nb5 {[%clk 0:02:38.7]} 13... Ra5 {[%clk 0:02:17]} 14.
a4 {[%clk 0:02:33.7]} 14... bxa3 {[%clk 0:01:59]} 15. Nxa3 {[%clk 0:02:32.2]}
15... Bd7 {[%clk 0:01:55.2]} 16. Bd2 {[%clk 0:02:31.5]} 16... Ra4 {[%clk
0:01:51.6]} 17. Nb5 {[%clk 0:02:29.2]} 17... Rxa1 {[%clk 0:01:45.5]} 18. Rxa1
{[%clk 0:02:30.1]} 18... Rc8 {[%clk 0:01:31.6]} 19. Be1 {[%clk 0:02:19.2]} 19...
Nb4 {[%clk 0:01:28.4]} 20. Nc3 {[%clk 0:02:14.4]} 20... Nc2 {[%clk 0:01:26.7]}
21. Rc1 {[%clk 0:02:12.3]} 21... Nxe1 {[%clk 0:01:26.7]} 22. Rxe1 {[%clk
0:02:08.7]} 22... Bc6 {[%clk 0:01:26.3]} 23. Ne5 {[%clk 0:02:06.1]} 23... Bxg2
{[%clk 0:01:26.1]} 24. Kxg2 {[%clk 0:02:07]} 24... Bd6 {[%clk 0:01:26.3]} 25.
Nc4 {[%clk 0:02:06.4]} 25... Bb4 {[%clk 0:01:23.6]} 26. Ra1 {[%clk 0:02:03.8]}
26... Kf8 {[%clk 0:01:20.4]} 27. Ra7 {[%clk 0:02:01.8]} 27... b6 {[%clk
0:01:16.6]} 28. Nb5 {[%clk 0:01:57.4]} 28... Ne8 {[%clk 0:01:16.3]} 29. Kf3
{[%clk 0:01:44.6]} 29... Ke7 {[%clk 0:01:16.2]} 30. Nxb6 {[%clk 0:01:07.3]}
30... Rb8 {[%clk 0:01:15.3]} 31. Nxc7 {[%clk 0:01:07.4]} 31... Nxc7 {[%clk
0:01:03.4]} 32. Rxc7+ {[%clk 0:01:06.3]} 32... Kd6 {[%clk 0:01:03.3]} 33. Rd7+
{[%clk 0:00:45]} 33... Kc6 {[%clk 0:01:02.6]} 34. Rxf7 {[%clk 0:00:43.7]} 34...
Rxb6 {[%clk 0:01:01.1]} 35. Rxg7 {[%clk 0:00:44]} 35... Rb7 {[%clk 0:01:01.5]}
36. Rxb7 {[%clk 0:00:38.2]} 36... Kxb7 {[%clk 0:01:01.6]} 37. Ke4 {[%clk
0:00:38.8]} 37... Kc6 {[%clk 0:01:01.5]} 38. Ke5 {[%clk 0:00:38.9]} 38... Kd7
{[%clk 0:01:01.1]} 39. Kf6 {[%clk 0:00:36.2]} 39... Be1 {[%clk 0:01:00]} 40. f4
{[%clk 0:00:35.8]} 40... Bf2 {[%clk 0:01:00.4]} 41. e4 {[%clk 0:00:33.3]} 41...
Bxd4+ {[%clk 0:01:00]} 42. e5 {[%clk 0:00:31.8]} 42... Bxb2 {[%clk 0:01:00]} 43.
Kg7 {[%clk 0:00:31.9]} 43... Ke7 {[%clk 0:00:57.3]} 44. Kxh7 {[%clk 0:00:31.5]}
44... Kf7 {[%clk 0:00:57.7]} 45. g4 {[%clk 0:00:30.2]} 45... Bc1 {[%clk
0:00:52.6]} 46. g5 {[%clk 0:00:28]} 46... Bxf4 {[%clk 0:00:18.5]} 47. g6+ {[%clk
0:00:10.6]} 47... Ke7 {[%clk 0:00:18.5]} 48. g7 {[%clk 0:00:11.1]} 48... Bxh2
{[%clk 0:00:18.3]} 49. g8=Q {[%clk 0:00:12]} 49... Bxe5 {[%clk 0:00:18.5]} 50.
Qg5+ {[%clk 0:00:11.8]} 50... Bf6 {[%clk 0:00:15.7]} 51. Qg6 {[%clk 0:00:11.9]}
51... e5 {[%clk 0:00:14.1]} 52. Kg8 {[%clk 0:00:12.2]} 52... Ke6 {[%clk
0:00:11.4]} 53. Qf7+ {[%clk 0:00:11.6]} 53... Kf5 {[%clk 0:00:11.3]} 54. Kh7
{[%clk 0:00:11.8]} 54... e4 {[%clk 0:00:11]} 55. Qd5+ {[%clk 0:00:09.9]} 55...
Kf4 {[%clk 0:00:10.3]} 56. Kg6 {[%clk 0:00:09]} 56... Be5 {[%clk 0:00:10]} 57.
Qd1 {[%clk 0:00:05.6]} 57... e3 {[%clk 0:00:10.1]} 58. Qe2 {[%clk 0:00:05.7]}
58... Bd4 {[%clk 0:00:06.3]} 59. Kf7 {[%clk 0:00:05.7]} 59... Bc3 {[%clk
0:00:04.1]} 60. Ke6 {[%clk 0:00:06.2]} 60... Bd2 {[%clk 0:00:04.2]} 61. Kd5
{[%clk 0:00:06.5]} 1-0

[Event "*** Titled Tuesday Blitz"]
[Site "Chess.com"]
[Date "2020.10.20"]
[Round "6"]
[White "SanchezKelvin"]
[Black "doons21"]
[Result "1-0"]
[WhiteElo "2413"]
[BlackElo "2546"]
[TimeControl "180+1"]
[EndTime "11:09:46 PDT"]
[Termination "SanchezKelvin won by resignation"]

1. d4 {[%clk 0:03:00.9]} 1... Nf6 {[%clk 0:02:59.6]} 2. c4 {[%clk 0:03:00.9]}
2... g6 {[%clk 0:02:59.4]} 3. Nc3 {[%clk 0:03:00.5]} 3... Bg7 {[%clk 0:03:00.1]}
4. Nf3 {[%clk 0:03:00.9]} 4... O-O {[%clk 0:03:01]} 5. e4 {[%clk 0:03:01.1]}
5... d6 {[%clk 0:03:01.1]} 6. Be2 {[%clk 0:03:01.6]} 6... e5 {[%clk 0:02:58.3]}
7. O-O {[%clk 0:03:01.4]} 7... Nbd7 {[%clk 0:02:58.4]} 8. Re1 {[%clk 0:02:57.9]}
8... c6 {[%clk 0:02:52.3]} 9. Bg5 {[%clk 0:02:50.9]} 9... exd4 {[%clk
0:02:43.3]} 10. Qxd4 {[%clk 0:02:49]} 10... Qb6 {[%clk 0:02:38.2]} 11. Qxb6
{[%clk 0:02:46.7]} 11... axb6 {[%clk 0:02:36.8]} 12. Rad1 {[%clk 0:02:45.5]}
12... Nc5 {[%clk 0:02:35.8]} 13. Bf1 {[%clk 0:02:37.7]} 13... Re8 {[%clk
0:02:27.9]} 14. Rxd6 {[%clk 0:02:31.4]} 14... Nfxe4 {[%clk 0:02:22.4]} 15. Nxe4
{[%clk 0:02:27.6]} 15... Nxe4 {[%clk 0:02:12.6]} 16. Rxe4 {[%clk 0:02:22]} 16...
Be6 {[%clk 0:02:06.6]} 17. Nd4 {[%clk 0:02:08.6]} 17... Bf8 {[%clk 0:01:59.7]}
18. Rdxe6 {[%clk 0:02:07.5]} 18... fxe6 {[%clk 0:01:59.5]} 19. a3 {[%clk
0:02:01.6]} 19... Bg7 {[%clk 0:01:55.7]} 20. Be3 {[%clk 0:01:50.9]} 20... Rad8
{[%clk 0:01:34.5]} 21. b4 {[%clk 0:01:44.6]} 21... e5 {[%clk 0:01:30.8]} 22. Nf3
{[%clk 0:01:43]} 22... Rd1 {[%clk 0:01:31.2]} 23. Bxb6 {[%clk 0:01:33.7]} 23...
Ra1 {[%clk 0:01:28.7]} 24. c5 {[%clk 0:01:21.3]} 24... Rxa3 {[%clk 0:01:21.5]}
25. Bc4+ {[%clk 0:01:20.5]} 25... Kh8 {[%clk 0:01:22]} 26. h4 {[%clk 0:01:16.9]}
26... Bf6 {[%clk 0:01:06.4]} 27. Ng5 {[%clk 0:01:04.5]} 27... Ra1+ {[%clk
0:00:58.5]} 28. Kh2 {[%clk 0:01:03.2]} 28... Rb1 {[%clk 0:00:58.9]} 29. Nf7+
{[%clk 0:00:55.8]} 29... Kg7 {[%clk 0:00:59.4]} 30. Nd6 {[%clk 0:00:55.9]} 30...
Ra8 {[%clk 0:00:53.9]} 31. Ba5 {[%clk 0:00:49.4]} 31... Rb8 {[%clk 0:00:54.1]}
32. g3 {[%clk 0:00:46.7]} 32... Rb2 {[%clk 0:00:54.2]} 33. Kg2 {[%clk
0:00:46.3]} 33... Kf8 {[%clk 0:00:32]} 34. Be2 {[%clk 0:00:40]} 34... Bd8 {[%clk
0:00:27.3]} 35. Nc4 {[%clk 0:00:34.8]} 35... Ra2 {[%clk 0:00:24.5]} 36. Nxe5
{[%clk 0:00:33.7]} 36... Kg7 {[%clk 0:00:22.1]} 37. Bc4 {[%clk 0:00:30.5]} 37...
Bxa5 {[%clk 0:00:21.2]} 38. Bxa2 {[%clk 0:00:29.4]} 38... Bc7 {[%clk 0:00:20.6]}
39. f4 {[%clk 0:00:28.7]} 39... Rd8 {[%clk 0:00:20.5]} 40. Bc4 {[%clk
0:00:27.3]} 40... Rd2+ {[%clk 0:00:20.4]} 41. Be2 {[%clk 0:00:24.5]} 41... Rb2
{[%clk 0:00:21.3]} 42. Kf2 {[%clk 0:00:20.3]} 42... Bd8 {[%clk 0:00:21.6]} 43.
Nd3 {[%clk 0:00:19.1]} 43... Rc2 {[%clk 0:00:20.6]} 44. Rd4 {[%clk 0:00:18.7]}
44... Bf6 {[%clk 0:00:20]} 45. Rd7+ {[%clk 0:00:18.8]} 45... Kg8 {[%clk
0:00:19.7]} 46. Rxb7 {[%clk 0:00:18.6]} 46... Bd4+ {[%clk 0:00:20.2]} 47. Kf3
{[%clk 0:00:18.9]} 47... Rc3 {[%clk 0:00:20.1]} 48. Rc7 {[%clk 0:00:17.8]} 48...
Bf6 {[%clk 0:00:17.3]} 49. Rxc6 {[%clk 0:00:17.1]} 49... Be7 {[%clk 0:00:18.2]}
50. b5 {[%clk 0:00:16.8]} 50... Kf7 {[%clk 0:00:18.8]} 51. b6 {[%clk 0:00:17.1]}
51... Rb3 {[%clk 0:00:18.1]} 52. Rc7 {[%clk 0:00:15]} 52... Ke6 {[%clk
0:00:18.6]} 53. Ke4 {[%clk 0:00:14]} 53... Bd8 {[%clk 0:00:19]} 54. Bg4+ {[%clk
0:00:12.6]} 54... Kf6 {[%clk 0:00:18.7]} 55. Rc6+ {[%clk 0:00:12.3]} 55... Ke7
{[%clk 0:00:18.8]} 56. Ne5 {[%clk 0:00:11.5]} 56... Rb4+ {[%clk 0:00:18.4]} 57.
Kd5 {[%clk 0:00:10.6]} 57... Rb1 {[%clk 0:00:15.9]} 58. Rc7+ {[%clk 0:00:10.6]}
58... Ke8 {[%clk 0:00:13.9]} 59. Rxh7 {[%clk 0:00:08.7]} 59... Rd1+ {[%clk
0:00:14]} 60. Ke6 {[%clk 0:00:08.9]} 60... Kf8 {[%clk 0:00:11.1]} 61. Rd7 {[%clk
0:00:08.3]} 61... Rxd7 {[%clk 0:00:10.1]} 62. Nxd7+ {[%clk 0:00:09.2]} 62... Kg7
{[%clk 0:00:10.6]} 63. b7 {[%clk 0:00:09.3]} 63... Bc7 {[%clk 0:00:11]} 64. b8=Q
{[%clk 0:00:09.6]} 64... Bxb8 {[%clk 0:00:11.9]} 65. Nxb8 {[%clk 0:00:09.9]} 1-0

[Event "*** Titled Tuesday Blitz"]
[Site "Chess.com"]
[Date "2020.10.20"]
[Round "6"]
[White "AlexTriapishko"]
[Black "C_K_G"]
[Result "1-0"]
[WhiteElo "2790"]
[BlackElo "2118"]
[TimeControl "180+1"]
[EndTime "11:09:48 PDT"]
[Termination "AlexTriapishko won on time"]

1. c4 {[%clk 0:03:00.9]} 1... Nf6 {[%clk 0:02:58.1]} 2. Nc3 {[%clk 0:03:01.8]}
2... g6 {[%clk 0:02:56.8]} 3. e4 {[%clk 0:03:01.7]} 3... d6 {[%clk 0:02:55.5]}
4. d4 {[%clk 0:03:02.1]} 4... Bg7 {[%clk 0:02:53]} 5. Be2 {[%clk 0:03:02.6]}
5... O-O {[%clk 0:02:39.6]} 6. Nf3 {[%clk 0:03:02.2]} 6... Nbd7 {[%clk
0:02:27.2]} 7. Be3 {[%clk 0:03:00.4]} 7... e5 {[%clk 0:02:26.7]} 8. d5 {[%clk
0:03:00]} 8... Ng4 {[%clk 0:02:21.6]} 9. Bg5 {[%clk 0:03:00.2]} 9... f6 {[%clk
0:02:16.2]} 10. Bh4 {[%clk 0:03:00.5]} 10... Nh6 {[%clk 0:02:13]} 11. Nd2 {[%clk
0:02:58.5]} 11... Nf7 {[%clk 0:02:12.8]} 12. O-O {[%clk 0:02:55.2]} 12... a5
{[%clk 0:02:06.8]} 13. f3 {[%clk 0:02:54.3]} 13... Nc5 {[%clk 0:02:06.5]} 14. b3
{[%clk 0:02:50.8]} 14... Bh6 {[%clk 0:02:03.9]} 15. Bf2 {[%clk 0:02:50.6]} 15...
f5 {[%clk 0:02:01.6]} 16. Rb1 {[%clk 0:02:46]} 16... f4 {[%clk 0:01:52.4]} 17.
a3 {[%clk 0:02:40.8]} 17... g5 {[%clk 0:01:43.7]} 18. b4 {[%clk 0:02:40.6]}
18... axb4 {[%clk 0:01:41.6]} 19. axb4 {[%clk 0:02:41.5]} 19... Nd7 {[%clk
0:01:40]} 20. c5 {[%clk 0:02:41.9]} 20... Kh8 {[%clk 0:01:36]} 21. Nc4 {[%clk
0:02:38.3]} 21... Rg8 {[%clk 0:01:33.2]} 22. Nb5 {[%clk 0:02:29.3]} 22... Nf6
{[%clk 0:01:29.6]} 23. cxd6 {[%clk 0:02:25.3]} 23... cxd6 {[%clk 0:01:28.1]} 24.
Nb6 {[%clk 0:02:24.3]} 24... Rb8 {[%clk 0:01:23.4]} 25. Na7 {[%clk 0:02:11.8]}
25... Bd7 {[%clk 0:01:18.1]} 26. Nxd7 {[%clk 0:02:11]} 26... Qxd7 {[%clk
0:01:16.7]} 27. h3 {[%clk 0:02:06.9]} 27... g4 {[%clk 0:01:01.7]} 28. hxg4
{[%clk 0:02:05.9]} 28... Bg5 {[%clk 0:00:59.4]} 29. Kh2 {[%clk 0:01:31.8]} 29...
h5 {[%clk 0:00:50.3]} 30. gxh5 {[%clk 0:01:27.8]} 30... Nxh5 {[%clk 0:00:43.5]}
31. Rh1 {[%clk 0:01:27.4]} 31... Kg7 {[%clk 0:00:42.4]} 32. Kg1 {[%clk
0:01:22.6]} 32... Rh8 {[%clk 0:00:40]} 33. Qe1 {[%clk 0:01:03.2]} 33... Qe7
{[%clk 0:00:31.4]} 34. Rh3 {[%clk 0:00:52.7]} 34... Nf6 {[%clk 0:00:12.2]} 35.
Rc1 {[%clk 0:00:43.2]} 35... Rxh3 {[%clk 0:00:10.8]} 36. gxh3 {[%clk 0:00:44.1]}
36... Rg8 {[%clk 0:00:10.2]} 37. Bf1 {[%clk 0:00:44.5]} 37... Kh6 {[%clk
0:00:09.9]} 38. Rc8 {[%clk 0:00:40.2]} 38... Rg7 {[%clk 0:00:08.3]} 39. Kh2
{[%clk 0:00:33.4]} 39... Nh5 {[%clk 0:00:08.3]} 40. Nb5 {[%clk 0:00:20]} 40...
Ng3 {[%clk 0:00:08.3]} 41. Bxg3 {[%clk 0:00:11.1]} 41... fxg3+ {[%clk
0:00:07.9]} 42. Kg2 {[%clk 0:00:11.7]} 42... Bf4 {[%clk 0:00:07.1]} 43. Rc7
{[%clk 0:00:10.4]} 43... Qh4 {[%clk 0:00:07.2]} 44. Rxf7 {[%clk 0:00:08.1]}
44... Rxf7 {[%clk 0:00:08.1]} 45. Nxd6 {[%clk 0:00:08.3]} 45... Rc7 {[%clk
0:00:07.2]} 46. Nf5+ {[%clk 0:00:08.4]} 46... Kg5 {[%clk 0:00:05.3]} 47. Nxh4
{[%clk 0:00:09.3]} 47... Rc2+ {[%clk 0:00:05]} 48. Be2 {[%clk 0:00:09.5]} 48...
Kxh4 {[%clk 0:00:05.3]} 49. d6 {[%clk 0:00:07.3]} 49... Rd2 {[%clk 0:00:04.9]}
50. Kf1 {[%clk 0:00:02.9]} 50... Rxd6 {[%clk 0:00:04.4]} 51. Kg2 {[%clk
0:00:02.9]} 51... Rd2 {[%clk 0:00:04.4]} 52. Qf1 {[%clk 0:00:03.3]} 52... Rb2
{[%clk 0:00:04.4]} 53. b5 {[%clk 0:00:03.6]} 53... Be3 {[%clk 0:00:03.1]} 54. f4
{[%clk 0:00:02.5]} 1-0

[Event "*** Titled Tuesday Blitz"]
[Site "Chess.com"]
[Date "2020.10.20"]
[Round "6"]
[White "ikhasu"]
[Black "Kaslask"]
[Result "1-0"]
[WhiteElo "2428"]
[BlackElo "2295"]
[TimeControl "180+1"]
[EndTime "11:09:48 PDT"]
[Termination "ikhasu won on time"]

1. e4 {[%clk 0:02:58.3]} 1... c5 {[%clk 0:02:58.8]} 2. Nf3 {[%clk 0:02:54.5]}
2... Nc6 {[%clk 0:02:58.1]} 3. Bb5 {[%clk 0:02:52.8]} 3... g6 {[%clk 0:02:57.2]}
4. O-O {[%clk 0:02:45.4]} 4... Bg7 {[%clk 0:02:55.9]} 5. Re1 {[%clk 0:02:45.5]}
5... Nf6 {[%clk 0:02:54.9]} 6. e5 {[%clk 0:02:43.3]} 6... Nd5 {[%clk 0:02:54.4]}
7. Nc3 {[%clk 0:02:43.2]} 7... Nc7 {[%clk 0:02:52.5]} 8. Bxc6 {[%clk 0:02:43.1]}
8... dxc6 {[%clk 0:02:50.8]} 9. Ne4 {[%clk 0:02:43.7]} 9... b6 {[%clk
0:02:47.3]} 10. Nf6+ {[%clk 0:02:43.4]} 10... Kf8 {[%clk 0:02:46.5]} 11. Ne4
{[%clk 0:02:41.3]} 11... Bg4 {[%clk 0:02:42.3]} 12. d3 {[%clk 0:02:40]} 12...
Qd5 {[%clk 0:02:34]} 13. Bf4 {[%clk 0:02:26.4]} 13... Ne6 {[%clk 0:02:33.1]} 14.
Bg3 {[%clk 0:02:22.6]} 14... Nd4 {[%clk 0:02:32.5]} 15. Ned2 {[%clk 0:02:21.4]}
15... Rd8 {[%clk 0:02:28]} 16. Re4 {[%clk 0:02:18]} 16... h5 {[%clk 0:02:12.9]}
17. h3 {[%clk 0:02:16.1]} 17... Nxf3+ {[%clk 0:02:08.4]} 18. Nxf3 {[%clk
0:02:13.9]} 18... Bf5 {[%clk 0:02:01.3]} 19. Re1 {[%clk 0:02:08.5]} 19... Bh6
{[%clk 0:02:00.4]} 20. Qe2 {[%clk 0:02:06.9]} 20... Kg7 {[%clk 0:01:56.9]} 21.
Bh4 {[%clk 0:02:00.1]} 21... Rd7 {[%clk 0:01:51.8]} 22. Bg5 {[%clk 0:01:51.7]}
22... Bxg5 {[%clk 0:01:46.5]} 23. Nxg5 {[%clk 0:01:51.6]} 23... f6 {[%clk
0:01:42.9]} 24. Nf3 {[%clk 0:01:29.7]} 24... Rhd8 {[%clk 0:01:35.9]} 25. b3
{[%clk 0:01:26.9]} 25... b5 {[%clk 0:01:33.1]} 26. a4 {[%clk 0:01:25.5]} 26...
c4 {[%clk 0:01:30]} 27. dxc4 {[%clk 0:01:17.1]} 27... bxc4 {[%clk 0:01:29.6]}
28. bxc4 {[%clk 0:01:12.7]} 28... Qc5 {[%clk 0:01:27.2]} 29. Rab1 {[%clk
0:01:07.5]} 29... Qa5 {[%clk 0:01:23.7]} 30. Qe3 {[%clk 0:00:50.3]} 30... Qxa4
{[%clk 0:01:18.7]} 31. Ra1 {[%clk 0:00:49.1]} 31... Qxc2 {[%clk 0:01:17.8]} 32.
Rxa7 {[%clk 0:00:47.1]} 32... Qxc4 {[%clk 0:01:16.6]} 33. exf6+ {[%clk
0:00:44.6]} 33... exf6 {[%clk 0:01:14.6]} 34. Nd4 {[%clk 0:00:39.9]} 34... Qd5
{[%clk 0:00:56.7]} 35. Nxf5+ {[%clk 0:00:34.5]} 35... Qxf5 {[%clk 0:00:56.1]}
36. Qd4 {[%clk 0:00:32.1]} 36... Qd5 {[%clk 0:00:50.2]} 37. Re7+ {[%clk
0:00:30.2]} 37... Rxe7 {[%clk 0:00:39.8]} 38. Rxe7+ {[%clk 0:00:29.9]} 38... Kg8
{[%clk 0:00:39.1]} 39. Qxf6 {[%clk 0:00:30.1]} 39... Qd1+ {[%clk 0:00:38.8]} 40.
Kh2 {[%clk 0:00:30.5]} 40... Qd6+ {[%clk 0:00:39.3]} 41. Qxd6 {[%clk 0:00:31]}
41... Rxd6 {[%clk 0:00:39]} 42. Rc7 {[%clk 0:00:31.5]} 42... h4 {[%clk 0:00:35]}
43. f3 {[%clk 0:00:27.7]} 43... Re6 {[%clk 0:00:32.2]} 44. Kg1 {[%clk
0:00:27.8]} 44... Kh8 {[%clk 0:00:31.9]} 45. Kf2 {[%clk 0:00:28.1]} 45... Kg8
{[%clk 0:00:31.8]} 46. f4 {[%clk 0:00:28.4]} 46... Re4 {[%clk 0:00:28.3]} 47.
Kf3 {[%clk 0:00:28.9]} 47... Rc4 {[%clk 0:00:28]} 48. Kg4 {[%clk 0:00:28.4]}
48... Kh8 {[%clk 0:00:22.8]} 49. Kg5 {[%clk 0:00:28.7]} 49... Rc2 {[%clk
0:00:19.1]} 50. Kxg6 {[%clk 0:00:24.5]} 50... Rxg2+ {[%clk 0:00:18]} 51. Kh5
{[%clk 0:00:24.7]} 51... Rc2 {[%clk 0:00:13.1]} 52. Kxh4 {[%clk 0:00:24.6]}
52... c5 {[%clk 0:00:11.3]} 53. Kg5 {[%clk 0:00:24.8]} 53... c4 {[%clk
0:00:11.4]} 54. Kf6 {[%clk 0:00:23.6]} 54... c3 {[%clk 0:00:10.8]} 55. f5 {[%clk
0:00:22.9]} 55... Rc1 {[%clk 0:00:10.8]} 56. h4 {[%clk 0:00:20.9]} 56... c2
{[%clk 0:00:10.8]} 57. h5 {[%clk 0:00:21]} 57... Kg8 {[%clk 0:00:10]} 58. h6
{[%clk 0:00:20.8]} 58... Kh8 {[%clk 0:00:09.7]} 59. h7 {[%clk 0:00:16.7]} 59...
Re1 {[%clk 0:00:04.2]} 60. Rxc2 {[%clk 0:00:17.2]} 60... Kxh7 {[%clk 0:00:04.2]}
61. Kf7 {[%clk 0:00:16.5]} 1-0